Cogmind - Beta 15 @@@ ROGUE MODE // 2025.05.09 @ 19:14:29 Player: H3-RMN Result: Destroyed by G-50 Soldier with Heavy Laser Performance ------------- Evolutions (5) 2500 Regions Visited (16) 3200 Robots Destroyed (411) 2055 Value Destroyed (16952) 16952 Prototype IDs (64) 1280 Alien Tech Used (0) 0 Bonus (8641) 8641 TOTAL SCORE: 34628 Bonus ------- High Alert Combat Kills 4513 Follower Combat Kills 2571 Entered Garrisons 200 Network Hubs Disabled 600 Registered with UFD 300 Met Optimus in HQ 500 Friendly Fire -43 Cogmind --------- Core Integrity 0/1000 Matter 251/300 Energy 60/100 System Corruption 31% Temperature Cool (9) Movement Core (50) Location -5/Hub_04(d) Parts ------- > --- POWER (2) -------- (None) > --- PROPULSION (4) --- (None) > --- UTILITY (7) ------ Improved Hacking Suite Improved Hacking Suite > --- WEAPON (4) ------- (None) > --- INVENTORY (5) ---- Improved Matter Compressor (203) Experimental Terrain Scanner CPS Tube (1) Large Botcube Peak State ------------ > --- POWER ------------ Quantum Reactor Quantum Reactor > --- PROPULSION ------- Centrium Heavy Treads Armored Huge Wheel > --- UTILITY ---------- Advanced Cooling System Huge Storage Unit Advanced Signal Interpreter Advanced Targeting Computer Improved Weapon Cycler Centrium Medium Armor Plating Medium Regenerative Plating > --- WEAPON ----------- Advanced Variable Charge Gun Enhanced Autogun Advanced KE Penetrator Voltaic Drivehammer > --- INVENTORY -------- Compact Particle Reactor Armored Huge Wheel Huge Storage Unit Improved Matter Compressor Deep Structural Scanner Experimental Sensor Array Experimental Terrain Scanner Surveybot 17 Chip Transmission Jammer Centrium Medium Armor Plating Improved Hacking Suite Improved Hacking Suite Improved Hacking Suite Improved Hacking Suite Advanced Hacking Suite Advanced System Shield Long-range Tractor Beam Enhanced Autogun Enhanced Autogun Advanced KE Penetrator Mini Assault Cannon Heavy Missile Launcher CPS Tube [Rating: 124] Favorites ----------- Power Reinforced Deuterium Engine Engine Reinforced Deuterium Engine Power Core Neutrino Core Reactor Quantum Reactor Propulsion Armored Treads Treads Armored Treads Leg Enhanced Flexi-carbon Leg Wheel Compact Wheel Hover Unit Airjet Flight Unit Improved VTOL Module Utility Huge Storage Unit Device Improved Heat Sink Storage Huge Storage Unit Processor Advanced Targeting Computer Hackware Advanced System Shield Protection Hardened Medium Armor Plating Weapon Mini Assault Cannon Energy Gun Advanced Beam Rifle Energy Cannon Improved EM Pulse Cannon Ballistic Gun Enhanced Autogun Ballistic Cannon Mini Assault Cannon Launcher Missile Launcher Special Weapon Voltaic Drivehammer Impact Weapon Powered Hammer Slashing Weapon Katana Special Melee Weapon Improved Datajack Build | -11 -10 -10 -10 -9 -8 -8 -8 -7 -7 -7 -7 -5 -5 -5 -5 -5 ------- Run | Yrd Mat Min Exi Min Mat Gar Mat Fac Sto Rec Scr Fac Ext Cet Arc Hub Slots Evolved 10 | . . . . . 4 . . 2 . . . 4 . . . . Power 1 | . . . . . . . . . . . . 1 . . . . Propulsion 2 | . . . . . 1 . . 1 . . . . . . . . Utility 5 | . . . . . 2 . . 1 . . . 2 . . . . Weapon 2 | . . . . . 1 . . . . . . 1 . . . . Parts Attached 258 | 8 7 8 3 1 36 6 11 24 39 16 12 25 32 9 8 13 Power 20 | 1 1 1 . . 1 . 2 2 1 . . 3 6 1 1 . Engine 11 | 1 1 1 . . 1 . 2 1 1 . . . 3 . . . Core 5 | . . . . . . . . 1 . . . 3 1 . . . Reactor 4 | . . . . . . . . . . . . . 2 1 1 . Propulsion 64 | 2 1 2 . . 7 2 4 7 14 5 2 7 9 1 . 1 Treads 40 | 1 . 2 . . 6 2 4 3 8 2 . 4 7 1 . . Leg 2 | . . . . . . . . . . . . 2 . . . . Wheel 18 | 1 1 . . . . . . 4 4 3 1 1 2 . . 1 Hover 1 | . . . . . . . . . . . 1 . . . . . Flight 3 | . . . . . 1 . . . 2 . . . . . . . Utility 105 | 3 2 2 1 . 13 4 5 11 8 8 7 11 14 3 5 8 Device 50 | 1 . 1 . . 9 3 1 6 3 3 3 6 8 2 2 2 Storage 11 | 2 1 . 1 . 2 . 1 1 . . 1 1 1 . . . Processor 10 | . . . . . . . . 2 . 2 1 3 2 . . . Hackware 9 | . . . . . . . 1 1 . . . . 1 . 1 5 Protection 25 | . 1 1 . . 2 1 2 1 5 3 2 1 2 1 2 1 Artifact . | . . . . . . . . . . . . . . . . . Weapon 69 | 2 3 3 2 1 15 . . 4 16 3 3 4 3 4 2 4 Energy Gun 15 | . 1 1 . . 7 . . 1 3 . . . . 1 1 . Energy Cannon 9 | . . . . . 4 . . 1 . . . 2 1 . . 1 Ballistic Gun 18 | 2 2 2 . . 1 . . 2 3 1 . 1 . 3 . 1 Ballistic Cannon 12 | . . . . 1 1 . . . 8 . . 1 1 . . . Launcher 6 | . . . . . 1 . . . 2 1 1 . . . . 1 Special Weapon 5 | . . . . . . . . . . . 2 . 1 . 1 1 Impact Weapon 1 | . . . . . . . . . . 1 . . . . . . Slashing Weapon 1 | . . . 1 . . . . . . . . . . . . . Piercing Weapon . | . . . . . . . . . . . . . . . . . Special Melee Weapon 2 | . . . 1 . 1 . . . . . . . . . . . Unidentified Prototypes 26 | . . . . . 5 . . 2 7 . . 4 4 4 . . Corrupted Parts 2 | . . . . . . . . 1 1 . . . . . . . System Corruption 5 | . . . . . . . . 1 4 . . . . . . . Parts Lost 66 | . 2 3 . . 2 3 1 5 15 3 1 5 10 6 . 10 Power 8 | . 1 . . . . . . . . . . 1 3 1 . 2 Propulsion 21 | . . 2 . . . 2 . 1 8 . . 1 4 . . 3 Utility 16 | . . 1 . . 1 1 . 1 2 3 1 2 1 1 . 2 Weapon 21 | . 1 . . . 1 . 1 3 5 . . 1 2 4 . 3 Highest Loss Streak 10 | . 1 3 . . 2 1 1 2 10 1 1 3 4 6 . 8 To Critical Strikes 4 | . . . . . . . . . . . . . 1 3 . . Average Backups 18 | 3 12 13 13 13 13 14 14 19 24 24 21 22 22 19 22 23 Power 1 | . . 1 1 2 1 1 . 1 2 2 1 . . . 1 . Propulsion 1 | 2 3 1 1 1 . . 1 2 3 3 1 3 2 1 1 . Utility 7 | . 2 4 5 5 6 5 5 6 8 7 7 9 11 12 13 16 Weapon 6 | 1 5 5 5 4 4 6 5 6 8 11 9 7 6 5 5 4 Tool/Special . | . . . . . . . . . . . . . . . . . Unused Backups 86 | . 3 4 1 . 12 1 6 4 4 . 15 15 3 . 13 5 Power 13 | . . 1 . . 3 . 1 2 . . 2 2 . . 2 . Propulsion 21 | . 2 . . . 1 1 3 1 . . 4 3 2 . 4 . Utility 33 | . . 2 1 . 6 . 2 1 1 . 5 6 1 . 3 5 Weapon 19 | . 1 1 . . 2 . . . 3 . 4 4 . . 4 . Tool/Special . | . . . . . . . . . . . . . . . . . Average Slot Usage (%) 95 | . 99 98 99 100 96 99 99 96 96 99 90 92 93 86 83 86 Engine 7 | . 13 14 14 14 9 9 9 7 7 7 6 3 1 . . . Reactor 1 | . . . . . . . . . . . . . 4 8 11 10 Treads 19 | . 14 25 28 28 26 26 26 19 15 14 15 14 17 2 5 4 Wheel 6 | . 14 2 . . . . . 7 12 15 14 7 2 7 5 4 Device 13 | . 3 2 . . 18 15 18 22 16 13 12 13 10 12 8 14 Storage 8 | . 14 14 14 14 9 9 9 7 7 7 6 5 5 5 5 4 Processor 4 | . . . . . . . . . . 4 7 14 14 11 11 10 Protection 8 | . 9 10 14 14 5 11 8 6 13 11 5 4 3 8 9 6 Energy Gun 6 | . 6 14 . . 16 19 17 9 1 . . . . 2 5 4 Energy Cannon 1 | . . . . . 5 . . 5 . . . . 2 1 . . Ballistic Gun 5 | . 21 14 . 13 . 7 8 6 1 4 . 1 . 11 15 15 Ballistic Cannon 8 | . . . . 13 5 . . . 18 15 12 16 18 5 . . Peak Build Rating 124 | 7 10 18 17 19 39 38 39 50 53 51 63 94 103 120 124 121 Average Rating 49 | 5 9 14 16 18 35 36 36 45 48 48 48 74 93 107 114 114 On Entrance 46 | . 7 10 18 17 19 38 35 39 47 49 43 57 82 99 120 118 Naked Turns . | . . . . . . . . . . . . . . . . . Heaviest Build 157 | 12 30 43 40 45 56 47 52 118 149 138 122 136 142 147 157 155 Greatest Support 110 | 16 16 40 40 40 63 63 60 88 80 32 32 110 110 56 28 80 Greatest Overweight (x) 35 | . 2 2 . 1 1 1 1 11 13 6 7 35 5 5 5 5 Average Overweight (x) 1 | . 1 . . . . . . 3 4 3 2 2 1 4 5 4 Largest Inventory Capacity 25 | 8 15 15 15 15 15 15 15 25 25 25 25 25 25 25 25 25 Average Capacity 20 | 7 14 15 15 15 15 15 15 21 25 25 24 25 25 25 25 24 Most Carried 25 | 7 15 15 15 15 15 15 15 25 25 25 25 25 25 25 25 25 Average Carried 19 | 3 12 14 14 14 14 14 14 20 24 24 22 23 24 22 23 24 Final Capacity 25 | 8 15 15 15 15 15 15 15 25 25 25 25 25 25 25 25 5 Final Carried 25 | 7 15 15 15 15 15 15 15 25 25 24 23 25 25 24 24 5 Class Distribution -------------------- 30% | Scavenger-Tank 16% | Mutant 12% | Tank 11% | Commander-Mutant 10% | Gunner 8% | Scavenger-Gunner 4% | Commander-Gunner Dominant Class ---------------- Mutant | -10/Materials Mutant | -10/Mines Mutant | -10/Exiles Mutant | -9/Mines Tank | -8/Materials Scavenger-Tank | -8/Garrison Scavenger-Tank | -8/Materials Scavenger-Tank | -7/Factory Scavenger-Tank | -7/Storage Scavenger-Tank | -7/Recycling Commander-Mutant | -7/Scraptown Gunner | -5/Factory Scavenger-Gunner | -5/Extension Scavenger-Tank | -5/Cetus Scavenger-Tank | -5/Archives Scavenger-Gunner | -5/Hub_04(d) Resources | -11 -10 -10 -10 -9 -8 -8 -8 -7 -7 -7 -7 -5 -5 -5 -5 -5 ----------- Run | Yrd Mat Min Exi Min Mat Gar Mat Fac Sto Rec Scr Fac Ext Cet Arc Hub Matter Collected 15890 | 336 497 174 58 182 907 409 512 755 3084 700 319 2545 2511 576 961 1364 Remotely 3037 | . . . . . . . . . . . . 1413 649 417 . 558 Salvage Created 17927 | 133 585 397 . 120 2471 1002 1454 1545 3104 1024 . 1508 2377 193 662 1352 Parts 800 | 8 35 14 . 7 117 51 75 74 153 18 . 54 76 11 32 75 Haulers Intercepted 25 | . 2 . . . 6 . 4 1 6 . . 4 1 . . 1 Recyclers Shooed 9 | . 1 . . . . . . 2 1 1 . 3 1 . . . Parts Field Recycled . | . . . . . . . . . . . . . . . . . Retrieved Matter . | . . . . . . . . . . . . . . . . . Parts Self-Destructed . | . . . . . . . . . . . . . . . . . Prevented . | . . . . . . . . . . . . . . . . . Kills | -11 -10 -10 -10 -9 -8 -8 -8 -7 -7 -7 -7 -5 -5 -5 -5 -5 ------- Run | Yrd Mat Min Exi Min Mat Gar Mat Fac Sto Rec Scr Fac Ext Cet Arc Hub Combat Hostiles Destroyed 285 | . 12 9 . 3 44 26 22 22 65 8 . 21 27 4 4 18 Melee 1 | . . . . . 1 . . . . . . . . . . . Guns 137 | . 12 9 . 2 20 24 21 15 7 1 . 4 . 1 4 17 Cannons 127 | . . . . 1 19 . . 7 52 7 . 14 24 3 . . AOE 11 | . . . . . 1 1 . . 6 . . 1 1 . . 1 Classes Destroyed 21 | 2 5 . . 1 7 1 1 1 1 . . 1 1 . . . Worker 25 | . . . . 2 5 . 3 4 3 . . 3 . . . 5 Builder 8 | . . . . . 1 . . 1 2 . . 1 2 . . 1 Tunneler 2 | 2 . . . . . . . . . . . . . . . . Hauler 25 | . 2 . . . 6 . 4 1 6 . . 4 1 . . 1 Recycler 30 | 1 1 1 . . 1 . . 6 4 5 . 3 8 . . . Mechanic 6 | . 1 . . . . . 1 . 3 . . . 1 . . . Operator 15 | . . . . . 1 . 1 1 1 . . . 1 . 9 1 Watcher 14 | . 3 . . . 4 . 1 1 1 . . 1 1 1 . 1 Swarmer 35 | . 6 3 . . 7 9 . 6 . . . . 3 . . 1 Cutter 2 | . . . . . . . . . . . . 2 . . . . Grunt 134 | . 6 6 . 3 22 8 10 11 44 2 . 9 8 . . 5 Brawler 3 | . . . . . . . . . 2 . . 1 . . . . Duelist 6 | . . . . . 1 . 3 . 2 . . . . . . . Protector 3 | . . . . . . . 1 . 2 . . . . . . . Sentry 55 | . . . . . 10 6 5 2 9 4 . 1 10 . 4 4 Demolisher 3 | . . . . . . 1 . . 1 1 . . . . . . Specialist 7 | . . . . . 2 . . . . . . . 1 . . 4 Hunter 13 | . . . . . 1 2 2 1 2 . . 2 3 . . . Programmer 17 | . . . . . . . . 2 4 1 . 6 . . . 4 Heavy 2 | . . . . . 1 . 1 . . . . . . . . . Behemoth 2 | . . . . . . . . . . . . . 2 . . . Cetus Guard 4 | . . . . . . . . . . . . . . 4 . . Best Kill Streak 11 | 2 5 4 . 2 6 3 9 10 8 6 . 5 7 5 7 11 Combat Bots Only 8 | . 5 4 . 2 6 3 8 6 8 5 . 4 5 4 2 4 Max Kills in Single Turn 2 | 1 1 1 . 1 2 1 2 1 2 2 . 2 2 1 1 2 Gunslinging 1 | . . . . . . . 1 . . . . . . . . 1 Exploded 2 | . . . . . 1 1 . . 2 . . 1 1 . . 1 Melee 1 | . . . . . 1 . . . . . . . . . . . Uniques/NPCs Destroyed . | . . . . . . . . . . . . . . . . . Combat | -11 -10 -10 -10 -9 -8 -8 -8 -7 -7 -7 -7 -5 -5 -5 -5 -5 -------- Run | Yrd Mat Min Exi Min Mat Gar Mat Fac Sto Rec Scr Fac Ext Cet Arc Hub Hostile Shots Fired 1850 | . 64 46 . 10 182 120 97 164 407 82 . 184 198 64 24 208 Missed 542 | . 13 6 . 1 61 31 29 53 132 18 . 63 61 17 5 52 Hits 1308 | . 51 40 . 9 121 89 68 111 275 64 . 121 137 47 19 156 Melee 15 | . . . . . . . 2 . 3 . . 10 . . . . Projectile 1293 | . 51 40 . 9 121 89 66 111 272 64 . 111 137 47 19 156 AOE 6 | . . . . . . 1 . . 3 . . 2 . . . . Critical Strikes 67 | . . 2 . . 4 2 3 1 14 1 . 13 7 8 . 12 Part Disruptions 4 | . . . . . . . . . . . . . . . . 4 Damage Taken 21689 | . 519 493 . 126 1734 1251 1122 1375 3855 588 166 2407 2672 1363 514 3504 Core 2321 | . 93 107 . 11 243 73 196 118 424 43 . 275 214 122 26 376 Absorbed by Shields 682 | . . . . . . . . . 194 . . 306 182 . . . Ignored by Resistances 250 | . . . . . . . 114 . 125 4 . 7 . . . . Regen/Repaired (Parts) 2190 | . 72 . . . 94 . 502 . . . 758 42 121 101 243 257 Core Remaining (%) 34 | 100 . . . 15 . . 6 . . . 16 . . . . . Volleys Fired 1098 | 14 67 37 . 12 106 93 76 94 170 42 1 107 101 20 90 68 Largest 4 | 2 2 2 . 2 3 3 3 3 3 3 1 4 4 4 4 4 Hottest 240 | 40 76 81 . 62 199 177 155 178 149 120 . 220 220 240 165 224 Shots Fired 2848 | 28 134 76 . 24 298 261 226 280 446 81 1 267 310 58 169 189 Gun 1651 | 28 134 76 . 12 172 259 218 202 80 34 . 50 14 22 168 182 Cannon 1177 | . . . . 12 126 . 8 78 361 47 . 216 293 34 . 2 Launcher 12 | . . . . . . 2 . . 5 . . . . . . 5 Special 8 | . . . . . . . . . . . 1 1 3 2 1 . Kinetic 1853 | 28 112 38 . 24 74 77 76 99 416 81 . 254 246 43 135 150 Thermal 860 | . 22 38 . . 172 182 142 164 4 . . 12 44 13 33 34 Explosive 12 | . . . . . . 2 . . 5 . . . . . . 5 Electromagnetic 118 | . . . . . 52 . 8 17 21 . . 1 18 1 . . Robot Hit Streak 18 | 10 10 10 . 5 16 11 13 17 14 18 7 13 18 7 17 18 Robot Miss Streak 10 | 2 4 3 . 3 8 4 5 4 3 2 . 5 10 2 5 2 Penetration Max 1 | . . . . . . . . . . . . . . . 1 1 Secondary Targets 22 | . 3 . . . 5 3 4 . 1 . . . . . . 6 Max Gunslinging Chain 1 | . 1 . . . 1 1 1 . 1 . . . . . . 1 Shots Hit Robots 1756 | 19 79 53 4 15 206 115 150 166 263 73 3 145 177 38 114 136 Core Hits 789 | 5 32 20 . 7 98 40 58 67 147 26 . 71 89 15 47 67 Critical Kills 9 | . . . . . . . 1 . . . . 1 . 1 . 6 Critical Parts Destroyed 8 | 1 . . . . . . . 1 . 1 . . 1 . . 4 Critical Strikes 92 | 1 1 2 . . 10 8 10 3 15 4 . 11 11 1 . 15 Burn 30 | . 1 2 . . 8 8 9 2 . . . . . . . . Destroy 21 | 1 . . . . . . 1 1 . 1 . 1 . 1 . 15 Blast 39 | . . . . . 1 . . . 15 3 . 10 10 . . . Corrupt 1 | . . . . . 1 . . . . . . . . . . . Smash 1 | . . . . . . . . . . . . . 1 . . . Melee Attacks 20 | . . . 4 1 1 . . . 1 10 2 1 . . . . Impact 1 | . . . . . . . . . . . . 1 . . . . Slashing 2 | . . . . . 1 . . . 1 . . . . . . . Piercing . | . . . . . . . . . . . . . . . . . Sneak Attacks 18 | . . . 4 1 . . . . . 10 2 1 . . . . Combat Hostiles . | . . . . . . . . . . . . . . . . . Follow-up Attacks . | . . . . . . . . . . . . . . . . . Damage Inflicted 44982 | 227 906 622 . 318 4690 2412 2944 3347 8774 1474 . 5383 5950 1489 2385 4061 Guns 19689 | 227 906 622 . 188 2419 2244 2762 2242 994 521 . 560 154 180 2385 3285 Cannons 21783 | . . . . 130 2188 . 176 1105 6798 953 . 4375 5193 865 . . Explosions 3297 | . . . . . 52 168 . . 982 . . 375 546 402 . 772 Melee 87 | . . . . . 31 . . . . . . 56 . . . . Ramming 37 | . . . . . . . 6 . . . . . 27 . . 4 Kinetic 27010 | 227 700 228 . 318 1128 492 773 870 7380 1474 . 4440 3808 756 1728 2688 Thermal 12671 | . 206 394 . . 2471 1752 1989 2227 206 . . 495 1388 289 657 597 Explosive 1921 | . . . . . . 168 . . 832 . . 149 . . . 772 Electromagnetic 3167 | . . . . . 1060 . 176 250 356 . . 226 697 402 . . Impact 145 | . . . . . . . . . . . . 73 30 42 . . Slashing 31 | . . . . . 31 . . . . . . . . . . . Piercing . | . . . . . . . . . . . . . . . . . Highest Corruption 31 | . 3 3 3 3 . . 1 2 6 6 6 19 24 28 28 31 Average Corruption 9 | . 2 3 3 3 . . 1 1 4 6 6 7 22 27 19 16 Corruption Purged 16 | . . . . . . . . 2 1 . . . . . 13 . Corruption Blocked . | . . . . . . . . . . . . . . . . . Effects 452 | . 3 33 5 19 . . . 4 57 25 29 39 118 16 54 50 Message Errors 92 | . . 9 1 4 . . . . 13 5 5 7 26 2 12 8 Matter Fused 102 | . 1 9 1 6 . . . . 18 8 4 7 27 4 8 9 Heat Flow Errors 62 | . 1 4 1 3 . . . 1 8 4 5 8 12 1 7 7 Energy Discharges 43 | . . 4 . 3 . . . 1 6 1 2 1 17 1 2 5 Parts Rejected 3 | . . . . . . . . 1 . 1 . . 1 . . . Parts Fused 4 | . . . . . . . . . . . 2 1 . . 1 . Data Loss (minor) 49 | . 1 3 2 1 . . . . 4 1 5 4 9 2 9 8 Data Loss (major) 17 | . . 1 . . . . . . . 2 5 3 4 1 1 . Misfires 15 | . . 2 . . . . . 1 1 2 . 1 3 . 3 2 Alerts 14 | . . 1 . 2 . . . . 2 . 1 1 2 2 2 1 Weapon Failures 51 | . . . . . . . . . 5 1 . 6 17 3 9 10 Overload Shots 1 | . . . . . . . . . . . . . . 1 . . Overflow Damage 797 | . . . . . 58 4 . 12 137 25 . 221 340 . . . Projectiles 581 | . . . . . 58 . . 12 132 25 . 207 147 . . . Explosions 216 | . . . . . . 4 . . 5 . . 14 193 . . . Melee . | . . . . . . . . . . . . . . . . . Knockbacks 114 | . . . . 1 13 . . . 54 5 . 27 14 . . . Impact . | . . . . . . . . . . . . . . . . . Kinetic 101 | . . . . 1 13 . . . 46 3 . 24 14 . . . Secondary 13 | . . . . . . . . . 8 2 . 3 . . . . Self-Inflicted Damage 346 | . . . . . . . . . 50 . . 71 . . . 225 Shots 6 | . . . . . . . . . 1 . . 1 . . . 4 Rammed 4 | . . . . . . . 1 . . . . . 1 . . 2 Targets Rammed 4 | . . . . . . . 1 . . . . . 1 . . 2 Kicked . | . . . . . . . . . . . . . . . . . Crushed . | . . . . . . . . . . . . . . . . . Highest Temperature 417 | . 260 254 212 237 398 386 190 223 250 255 253 417 295 353 407 358 Average Temperature 86 | . 35 83 109 102 100 82 64 48 52 101 107 85 83 108 123 130 Received Heat Transfer 6388 | . 144 222 . 72 531 459 396 447 1834 219 . 669 624 189 81 501 Effects 7 | . . . . . 3 1 . . . . 1 . . . 2 . Shutdowns 1 | . . . . . . . . . . . . . . . 1 . Energy Bleed 3 | . . . . . 1 1 . . . . 1 . . . . . Interference 2 | . . . . . 2 . . . . . . . . . . . Damage (minor) 1 | . . . . . . . . . . . . . . . 1 . Siege Activations . | . . . . . . . . . . . . . . . . . Martial Activations . | . . . . . . . . . . . . . . . . . Shielding Activations . | . . . . . . . . . . . . . . . . . Robots Disrupted . | . . . . . . . . . . . . . . . . . Combat Hostiles . | . . . . . . . . . . . . . . . . . Robots Corrupted 6 | . . . . . 2 . . . . . . 2 2 . . . Combat Hostiles 6 | . . . . . 2 . . . . . . 2 2 . . . Parts Fried 18 | . . . . . 10 . 3 . . . . 2 . 3 . . Impact Corruptions 4 | . . . . . . . . . . . . 2 2 . . . Robots Melted 3 | . . . . . 1 1 1 . . . . . . . . . Combat Hostiles 3 | . . . . . 1 1 1 . . . . . . . . . Parts Melted 37 | . 1 1 . . 10 11 4 4 . . . . 3 . 1 2 Heat Transferred 23812 | . 592 1147 . . 5243 3774 4347 4107 311 . . 550 1700 450 814 777 Parts Sabotaged . | . . . . . . . . . . . . . . . . . Parts Stolen . | . . . . . . . . . . . . . . . . . Parts Stripped . | . . . . . . . . . . . . . . . . . Power Chain Reactions 4 | . . . . . 1 . . . 2 . . . 1 . . . Alert | -11 -10 -10 -10 -9 -8 -8 -8 -7 -7 -7 -7 -5 -5 -5 -5 -5 ------- Run | Yrd Mat Min Exi Min Mat Gar Mat Fac Sto Rec Scr Fac Ext Cet Arc Hub Maximum Alert Level 5 | . . . . . 2 5 3 2 5 3 . 4 4 2 1 2 Low Security (%) 31 | 100 100 100 . 100 50 . . . . . . 11 . . 47 62 Level 1 11 | . . . . . 36 10 . . 8 . . 6 . . 52 33 Level 2 21 | . . . . . 13 28 5 100 23 27 . 13 39 100 . 3 Level 3 22 | . . . . . . 18 94 . 27 72 . 21 53 . . . Level 4 8 | . . . . . . 37 . . 15 . . 46 7 . . . Level 5 3 | . . . . . . 5 . . 25 . . . . . . . High Security . | . . . . . . . . . . . . . . . . . Max Security . | . . . . . . . . . . . . . . . . . Peak Influence 1944 | 5 160 85 . 41 500 1810 1054 634 1944 776 . 1368 1225 681 314 467 Initial 882 | . . 7 . . . 262 882 457 280 751 . . 666 681 236 11 Average 538 | 1 70 14 . 2 226 975 873 504 1085 714 . 849 735 621 193 195 Influence Increases 13037 | 15 414 240 . 119 1341 1658 705 745 2646 379 . 1968 1546 140 195 926 Destroy 0b10 Robot/C 7080 | . 240 180 . 80 880 740 420 440 1420 160 . 1060 840 80 80 460 Destroy 0b10 Robot/NC 715 | 15 35 5 . 10 90 5 55 70 120 50 . 80 80 5 45 50 Destroy Leader 1398 | . 50 40 . 20 240 30 130 104 346 . . 220 104 . . 114 Allied During Kill 827 | . . . . 5 1 68 . . 248 . . 201 263 1 . 40 Successful Hack 337 | . 44 . . . 58 36 51 22 16 38 . 14 42 . . 16 Select Force Hacks 250 | . 30 . . . . . . . . 120 . . . . . 100 Disable Machine 510 | . . . . . 15 15 15 30 75 . . 225 15 30 60 30 Anti-Garrison Action 750 | . . . . . . 600 . . 150 . . . . . . . Destroy Structure 645 | . . . . 4 12 59 4 4 151 11 . 138 112 24 10 116 Lose Combat Pursuer 525 | . 15 15 . . 45 105 30 75 120 . . 30 90 . . . Influence Decreases 12606 | 15 393 261 . 119 937 252 1509 1133 1336 1617 690 608 1688 767 753 528 Entered New Map 5446 | . . 14 . . . 142 928 549 338 1177 690 . 694 537 355 22 Time Decay 5468 | 15 373 227 . 99 615 . 571 534 648 410 . 468 614 110 398 386 Lost Part 640 | . 20 20 . . 20 30 10 50 150 30 . 50 100 60 . 100 Lost Ally 752 | . . . . 20 2 80 . . 200 . . 90 280 60 . 20 Purge Threat 300 | . . . . . 300 . . . . . . . . . . . Squads Dispatched 78 | . 2 . . . 8 . 5 7 21 . . 17 5 . . 13 Investigation 23 | . 2 . . . 5 . 1 2 3 . . 6 2 . . 2 Extermination 10 | . . . . . . . . 2 4 . . 3 . . . 1 Reinforcement 30 | . . . . . 2 . 3 2 8 . . 7 2 . . 6 Assault 10 | . . . . . . . 1 1 6 . . 1 1 . . . Garrison 5 | . . . . . 1 . . . . . . . . . . 4 Intercept . | . . . . . . . . . . . . . . . . . Searches Triggered . | . . . . . . . . . . . . . . . . . Construction Impeded 6 | . . . . . . . . . 4 . . 1 . . . 1 Haulers Reinforced 3 | . . . . . . . . . 1 . . 2 . . . . Active Scanning Responses . | . . . . . . . . . . . . . . . . . Cargo Convoy Interrupts . | . . . . . . . . . . . . . . . . . Stealth | -11 -10 -10 -10 -9 -8 -8 -8 -7 -7 -7 -7 -5 -5 -5 -5 -5 --------- Run | Yrd Mat Min Exi Min Mat Gar Mat Fac Sto Rec Scr Fac Ext Cet Arc Hub Distress Signals 19 | . 1 . . . 5 . 2 . . . . 3 6 1 1 . Communications Jammed 133 | . . . . . . . . 19 31 . . 81 . . . 2 Distress Signals 128 | . . . . . . . . 15 31 . . 81 . . . 1 Times Spotted 503 | . 22 10 . 4 64 39 29 40 97 6 . 50 59 5 37 41 Peak Tracking Total 13 | . 4 5 . 2 7 5 8 7 8 3 . 7 6 5 2 13 Tactical Retreats 25 | . 1 1 . . 3 6 2 3 4 . . 2 3 . . . Traps | -11 -10 -10 -10 -9 -8 -8 -8 -7 -7 -7 -7 -5 -5 -5 -5 -5 ------- Run | Yrd Mat Min Exi Min Mat Gar Mat Fac Sto Rec Scr Fac Ext Cet Arc Hub Traps Triggered 16 | . 4 . . . . 2 2 . 1 . 1 1 4 . . 1 Indirectly . | . . . . . . . . . . . . . . . . . Trap Hack Attempts 15 | . . . . . 15 . . . . . . . . . . . Triggered . | . . . . . . . . . . . . . . . . . Disarmed . | . . . . . . . . . . . . . . . . . Reprogrammed 1 | . . . . . 1 . . . . . . . . . . . Reused . | . . . . . . . . . . . . . . . . . Traps Extracted 1 | . . . . . 1 . . . . . . . . . . . Installed 1 | . . . . . . . . . . . 1 . . . . . Triggered . | . . . . . . . . . . . . . . . . . Most Traps Carried 7 | . . 5 5 5 6 6 6 6 6 6 7 6 6 . . . Machines | -11 -10 -10 -10 -9 -8 -8 -8 -7 -7 -7 -7 -5 -5 -5 -5 -5 ---------- Run | Yrd Mat Min Exi Min Mat Gar Mat Fac Sto Rec Scr Fac Ext Cet Arc Hub Machines Disabled 47 | . . . . . 1 9 1 2 6 . . 15 4 3 4 2 Max in Single Turn 2 | . . . . . 1 1 1 1 1 . . 1 2 1 1 1 Garrison Access 2 | . . . . . . . . 1 1 . . . . . . . Garrison Relay 7 | . . . . . . 7 . . . . . . . . . . Network Hub 3 | . . . . . . . . . . . . . . . . 3 Machines Repaired . | . . . . . . . . . . . . . . . . . Machines Dismantled 1 | . . . . . . . . . . . . . . . . 1 Machines Sabotaged 2 | . . . . . . . . . . . . . . . . 2 Overloaded Fab Kills . | . . . . . . . . . . . . . . . . . Hacking | -11 -10 -10 -10 -9 -8 -8 -8 -7 -7 -7 -7 -5 -5 -5 -5 -5 --------- Run | Yrd Mat Min Exi Min Mat Gar Mat Fac Sto Rec Scr Fac Ext Cet Arc Hub Machines Accessed 102 | . 10 1 1 . 17 4 10 11 8 10 4 8 12 . . 6 Terminals 63 | . 8 . . . 11 4 6 4 6 5 . 2 12 . . 5 Fabricators 4 | . . . . . . . . 3 . . . 1 . . . . Repair Stations 6 | . 1 . . . 1 . 1 1 1 . . 1 . . . . Recycling Units 12 | . 1 . . . 2 . 1 . . 5 . 3 . . . . Scanalyzers 5 | . . . . . 2 . 2 . . . . 1 . . . . Garrison Access 6 | . . . . . 1 . . 3 1 . . . . . . 1 Total Hacks 311 | . 32 1 4 . 56 10 44 25 13 25 29 22 37 . . 13 Successful 157 | . 21 1 4 . 29 3 29 8 4 13 29 5 8 . . 3 Failed 154 | . 11 . . . 27 7 15 17 9 12 . 17 29 . . 10 Catastrophic 29 | . 3 . . . 3 3 1 3 3 1 . 3 9 . . . Database Lockouts . | . . . . . . . . . . . . . . . . . Manual 142 | . 28 . . . 33 1 21 4 2 20 . 17 6 . . 10 Terminals 187 | . 27 . . . 37 10 26 8 10 13 . 7 37 . . 12 Fabricators 12 | . . . . . . . . 9 . . . 3 . . . . Repair Stations 17 | . 3 . . . 3 . 7 2 1 . . 1 . . . . Recycling Units 31 | . 2 . . . 6 . 2 . . 12 . 9 . . . . Scanalyzers 18 | . . . . . 7 . 9 . . . . 2 . . . . Garrison Access 12 | . . . . . 3 . . 6 2 . . . . . . 1 Terminal Hacks 75 | . 10 1 4 . 8 2 7 2 3 . 29 1 8 . . . Record 25 | . . . 4 . . . . . . . 21 . . . . . Part Schematic 4 | . 2 . . . . . 1 . 1 . . . . . . . Robot Schematic 1 | . 1 . . . . . . . . . . . . . . . Robot Analysis 10 | . 1 . . . 1 . 1 . . . 7 . . . . . Prototype ID Bank 7 | . 6 . . . 1 . . . . . . . . . . . Open Door 11 | . . 1 . . . 1 . . 2 . . . 7 . . . Terminal Index 2 | . . . . . 1 . . 1 . . . . . . . . Scanalyzer Index 1 | . . . . . . . 1 . . . . . . . . . Alert Level 1 | . . . . . 1 . . . . . . . . . . . Unreport Threat 2 | . . . . . 2 . . . . . . . . . . . Locate Traps 4 | . . . . . 1 . . 1 . . . 1 1 . . . Hauler Manifests 1 | . . . . . . . 1 . . . . . . . . . Registered Components 1 | . . . . . . . 1 . . . . . . . . . Zone Layout 3 | . . . . . 1 . 2 . . . . . . . . . Security Stations 1 | . . . . . . 1 . . . . . . . . . . Proto ID Catalog 1 | . . . . . . . . . . . 1 . . . . . Fabricator Hacks 5 | . . . . . . . . 3 . . . 2 . . . . Network Status 1 | . . . . . . . . 1 . . . . . . . . Load Schematic 2 | . . . . . . . . 1 . . . 1 . . . . Build 2 | . . . . . . . . 1 . . . 1 . . . . Repair Station Hacks 11 | . 2 . . . 3 . 6 . . . . . . . . . Scan Component 6 | . 1 . . . 2 . 3 . . . . . . . . . Repair 5 | . 1 . . . 1 . 3 . . . . . . . . . Recycling Unit Hacks 7 | . 1 . . . 2 . . . . 4 . . . . . . Report Inventory 6 | . 1 . . . 2 . . . . 3 . . . . . . Retrieve Components 1 | . . . . . . . . . . 1 . . . . . . Scanalyzer 10 | . . . . . 3 . 7 . . . . . . . . . Insert Component 7 | . . . . . 3 . 4 . . . . . . . . . Analyze 3 | . . . . . . . 3 . . . . . . . . . Garrison Access Hacks 2 | . . . . . 1 . . 1 . . . . . . . . Unlock Access 1 | . . . . . 1 . . . . . . . . . . . Seal Access 1 | . . . . . . . . 1 . . . . . . . . Unauthorized Hacks 47 | . 8 . . . 12 1 9 2 1 9 . 2 . . . 3 Terminals 35 | . 7 . . . 8 1 9 1 1 5 . . . . . 3 Track 2 | . . . . . 1 . 1 . . . . . . . . . Botnet 7 | . 2 . . . 1 1 2 . . . . . . . . 1 Operators 2 | . . . . . 1 . 1 . . . . . . . . . Skim 21 | . 5 . . . 5 . 5 1 . 5 . . . . . . Sabotage 2 | . . . . . . . . . . . . . . . . 2 Search 1 | . . . . . . . . . 1 . . . . . . . Fabricators 1 | . . . . . . . . 1 . . . . . . . . Recompile 1 | . . . . . . . . 1 . . . . . . . . Repair Stations 1 | . . . . . . . . . . . . 1 . . . . Patch 1 | . . . . . . . . . . . . 1 . . . . Recycling Units 10 | . 1 . . . 4 . . . . 4 . 1 . . . . Monitor 1 | . . . . . 1 . . . . . . . . . . . Reject 1 | . . . . . 1 . . . . . . . . . . . Recyclers 1 | . . . . . 1 . . . . . . . . . . . Mask 1 | . . . . . 1 . . . . . . . . . . . Tunnel 5 | . 1 . . . . . . . . 4 . . . . . . Fedlink 1 | . . . . . . . . . . . . 1 . . . . Scanalyzers . | . . . . . . . . . . . . . . . . . Garrison Access . | . . . . . . . . . . . . . . . . . Data Cores Recovered 2 | . . . . . 1 . . . . . . . . . . 1 Used . | . . . . . . . . . . . . . . . . . Hacking Detections 77 | . 8 . . . 16 3 9 11 6 6 . 6 6 . . 6 Full Trace Events 17 | . . . . . 4 1 2 1 2 1 . 4 2 . . . Feedback Events 3 | . . . . . . . 1 . 1 . . 1 . . . . Corruption 3 | . . . . . . . 1 . 1 . . 1 . . . . Feedback Blocked . | . . . . . . . . . . . . . . . . . Robot Schematics Acquired 1 | . 1 . . . . . . . . . . . . . . . Robots Built . | . . . . . . . . . . . . . . . . . Authchips . | . . . . . . . . . . . . . . . . . Time . | . . . . . . . . . . . . . . . . . Total Robot Build Rating . | . . . . . . . . . . . . . . . . . Part Schematics Acquired 7 | . 2 . . . . . 4 . 1 . . . . . . . Parts Built 2 | . . . . . . . . 1 . . . 1 . . . . Authchips 1 | . . . . . . . . 1 . . . . . . . . Time 109 | . . . . . . . . 36 . . . 73 . . . . Total Part Build Rating 6 | . . . . . . . . 3 . . . 3 . . . . Parts Repaired 5 | . 1 . . . 1 . 3 . . . . . . . . . Time 222 | . 26 . . . 38 . 158 . . . . . . . . . Parts Recycled . | . . . . . . . . . . . . . . . . . Recycled Matter . | . . . . . . . . . . . . . . . . . Retrieved Matter . | . . . . . . . . . . . . . . . . . Retrieved Components 2 | . . . . . . . . . . 2 . . . . . . Parts Scanalyzed 4 | . . . . . 1 . 3 . . . . . . . . . Part Schematics Acquired 3 | . . . . . . . 3 . . . . . . . . . Parts Damaged 2 | . . . . . 2 . . . . . . . . . . . Bothacking | -11 -10 -10 -10 -9 -8 -8 -8 -7 -7 -7 -7 -5 -5 -5 -5 -5 ------------ Run | Yrd Mat Min Exi Min Mat Gar Mat Fac Sto Rec Scr Fac Ext Cet Arc Hub Used RIF Installer . | . . . . . . . . . . . . . . . . . Robots Hacked 8 | . . . 4 1 . . . . . 1 2 . . . . . Non-combat 4 | . . . 3 1 . . . . . . . . . . . . Combat 4 | . . . 1 . . . . . . 1 2 . . . . . Robot Hacks Applied 8 | . . . 4 1 . . . . . 1 2 . . . . . parse_system 8 | . . . 4 1 . . . . . 1 2 . . . . . Relay Couplers Released 31 | . . . . . . 29 . . 2 . . . . . . . Machine Destruction 31 | . . . . . . 29 . . 2 . . . . . . . Fabnet Peak Effective % . | . . . . . . . . . . . . . . . . . Robots Rewired 21 | . . . . . . 4 . . . 6 . . 11 . . . Allies Hacked 2 | . . . . . . . . . . . . 2 . . . . Hacks Repelled . | . . . . . . . . . . . . . . . . . Allies | -11 -10 -10 -10 -9 -8 -8 -8 -7 -7 -7 -7 -5 -5 -5 -5 -5 -------- Run | Yrd Mat Min Exi Min Mat Gar Mat Fac Sto Rec Scr Fac Ext Cet Arc Hub Total Allies 46 | . . . . 2 . 4 . . 12 6 1 . 20 . 1 . Largest Group 11 | . . . . 2 1 4 . . 10 6 7 7 11 3 1 1 Highest-Rated Group 290 | . . . . 38 7 106 . . 173 132 233 233 290 60 124 124 Highest-Rated Ally 159 | . . . . 31 7 31 . . 31 40 101 101 159 20 124 124 Initial Warlord ECA Mod 51 | . . . . . . . 11 10 10 10 10 . . . . . Total Orders 7 | . . . . . . . . . . . 5 . . . . 2 STAY 4 | . . . . . . . . . . . 3 . . . . 1 FOLLOW 3 | . . . . . . . . . . . 2 . . . . 1 Ally Attacks 396 | . . . . 5 . 59 . . 76 . . 101 145 . . 10 Total Damage 10267 | . . . . 84 . 1268 . . 952 . . 4311 3018 . . 634 Kills 82 | . . . . 1 . 11 . . 10 . . 36 18 . . 6 Allies Corrupted 1 | . . . . . . . . . . . . 1 . . . . Allies Melted 2 | . . . . . . . . . . . . . 1 . . 1 Intel | -11 -10 -10 -10 -9 -8 -8 -8 -7 -7 -7 -7 -5 -5 -5 -5 -5 ------- Run | Yrd Mat Min Exi Min Mat Gar Mat Fac Sto Rec Scr Fac Ext Cet Arc Hub Active Infowar (turns) 7551 | 27 262 231 . . . . . 1399 355 . 2493 1465 601 . . 718 Sensors 3320 | . . . . . . . . . . . 2464 516 219 . . 121 Structural 236 | . . . . . . . . . . . 29 161 46 . . . Seismic 520 | 27 262 231 . . . . . . . . . . . . . . T.N.C. 625 | . . . . . . . . 38 . . . 92 495 . . . Jamming 4534 | . . . . . . . . 1361 355 . 585 1459 177 . . 597 Robot Analysis Total 10 | . 1 . . . 1 . 1 . . . 7 . . . . . Derelict Logs Recovered 3 | . . 1 . 2 . . . . . . . . . . . . Drone Launches . | . . . . . . . . . . . . . . . . . Drone Recoveries . | . . . . . . . . . . . . . . . . . Exploration | -11 -10 -10 -10 -9 -8 -8 -8 -7 -7 -7 -7 -5 -5 -5 -5 -5 ------------- Run | Yrd Mat Min Exi Min Mat Gar Mat Fac Sto Rec Scr Fac Ext Cet Arc Hub Turns Passed 25464 | 123 1038 1309 404 1359 3408 1827 1734 1504 2360 992 3819 1467 2031 238 944 907 Spaces Moved 11934 | 62 670 614 243 537 1519 820 765 685 900 528 2626 581 669 95 349 271 Core 180 | 1 . . . . . . . . . . 169 1 . . . 9 Treads 5249 | . . 459 243 537 1519 820 765 213 64 . . 159 467 . . 3 Legs . | . . . . . . . . . . . . . . . . . Wheels 6505 | 61 670 155 . . . . . 472 836 528 2457 421 202 95 349 259 Hover . | . . . . . . . . . . . . . . . . . Flight . | . . . . . . . . . . . . . . . . . Fastest Speed 50 | 50 100 110 160 160 160 163 163 125 145 145 50 155 130 130 175 50 Average Speed 161 | 99 112 186 160 238 167 165 167 161 174 150 136 161 190 161 175 172 Slowest Speed 1800 | 100 115 240 160 240 240 245 240 247 640 170 205 1800 330 175 175 240 Overloaded Moves . | . . . . . . . . . . . . . . . . . Propulsion Burnouts . | . . . . . . . . . . . . . . . . . Robots Hopped . | . . . . . . . . . . . . . . . . . Potential Cave-ins . | . . . . . . . . . . . . . . . . . Cave-ins Triggered . | . . . . . . . . . . . . . . . . . Exploration Rate (%) 66 | 4 98 97 64 99 93 80 69 19 88 90 88 17 74 52 82 23 Regions Visited 16 Branch Regions 10 Pre-discovered Areas 12 | . 1 1 1 1 . . . . . 4 4 . . . . . Known Exits Taken 9 | . . . . . 1 . 1 1 1 . 1 1 1 1 1 . Unknown Exits Taken 6 | 1 1 1 1 1 . . . . . 1 . . . . . . Scrap Searched 6 | . . 1 . 1 . . . . . . 4 . . . . . Spaces Dug 27 | . . . . . . . . . . . . 22 . . . 5 Terrain Destroyed 408 | . . . . 4 8 27 . . 163 12 . 65 59 14 5 51 Melee . | . . . . . . . . . . . . . . . . . Projectile 235 | . . . . 4 5 1 . . 99 12 . 45 53 1 5 10 AOE 173 | . . . . . 3 26 . . 64 . . 20 6 13 . 41 Terrain Rammed . | . . . . . . . . . . . . . . . . . Walls Destroyed . | . . . . . . . . . . . . . . . . . Machines Disabled . | . . . . . . . . . . . . . . . . . Actions | -11 -10 -10 -10 -9 -8 -8 -8 -7 -7 -7 -7 -5 -5 -5 -5 -5 --------- Run | Yrd Mat Min Exi Min Mat Gar Mat Fac Sto Rec Scr Fac Ext Cet Arc Hub Total 16136 | 94 838 718 258 591 2155 1122 1080 900 1337 671 2900 885 1186 154 623 624 Wait 1766 | 3 72 31 . 37 398 43 189 49 141 48 130 98 161 13 128 225 Move 11918 | 61 669 613 242 536 1518 819 764 684 899 527 2625 580 668 94 348 271 Hop . | . . . . . . . . . . . . . . . . . Pick Up 236 | 7 12 12 3 1 21 5 9 19 27 3 51 17 15 6 21 7 Fast Attach 151 | 8 4 2 2 . 24 2 8 9 19 9 9 17 26 5 5 2 Attach 86 | . 2 2 2 . 5 2 1 8 13 3 14 10 9 6 3 6 Detach 18 | . 1 1 . . . . . 2 4 . 4 2 3 1 . . Swap 198 | . 4 5 . 2 21 7 13 16 21 15 3 27 29 5 5 25 Drop 331 | 1 7 15 5 2 46 7 19 19 35 14 60 26 33 4 23 15 Fire 1098 | 14 67 37 . 12 106 93 76 94 170 42 1 107 101 20 90 68 Melee 20 | . . . 4 1 1 . . . 1 10 2 1 . . . . Ram . | . . . . . . . . . . . . . . . . . Kick . | . . . . . . . . . . . . . . . . . Crush 4 | . . . . . . . 1 . . . . . 1 . . 2 Escape Stasis 15 | . . . . . . . . . 7 . . . 8 . . . Rewire 276 | . . . . . . 144 . . . . . . 132 . . . Trap 16 | . . . . . 15 . . . . . 1 . . . . . Miscellaneous 3 | . . . . . . . . . . . . . . . . 3 Route ------- -11/Scrapyard -10/Materials (discovered 5 exits: *Mat x3 / *Min / *Sub) -10/Mines (discovered 3 exits: *Mat x2 / *Exi) -10/Exiles (discovered 2 exits: [*Min x2]) -9/Mines (discovered 2 exits: *Mat x2) -8/Materials (discovered 4 exits: *Fac x3 / Gar) -8/Garrison (discovered 3 exits: *Mat x3) -8/Materials (discovered 3 exits: *Fac x3) -7/Factory (discovered 3 exits: *Sto x2 / Low) -7/Storage (discovered 2 exits: *Fac / *Rec) -7/Recycling (discovered 2 exits: *Fac / *Scr) -7/Scraptown (discovered 2 exits: *Fac x2) -5/Factory (discovered 8 exits: Fac x4 / Upp x2 / *Ext x2) -5/Extension (discovered 3 exits: *Fac x2 / *Cet) -5/Cetus -5/Archives (discovered 2 exits: *Fac / *Hub) -5/Hub_04(d) (discovered 1 exit: *Fac) History --------- Turn | Location | Event 31 | -11/Scrapyard | Discovered new exit (range 15) 124 | -11/Scrapyard | Entered Materials 241 | -10/Materials | Discovered new exit (range 13) 313 | -10/Materials | Build established: Mutant 573 | -10/Materials | Discovered new exit (range 15) 718 | -10/Materials | Discovered new exit (range 10) 785 | -10/Materials | Learned 2 Storage zone layouts 840 | -10/Materials | Loaded intel: 1 repair station location 887 | -10/Materials | Identified exit to Subcaves 922 | -10/Materials | Learned 2 Storage zone layouts 949 | -10/Materials | Identified exit to Materials 985 | -10/Materials | Learned location of 1 exit from Storage 1074 | -10/Materials | Repaired Lgt. Armor Plating 1162 | -10/Materials | Entered Mines 1179 | -10/Mines | Core integrity fell below 50% 1233 | -10/Mines | Found a damaged Exp. Sensor Array with a note attached 1236 | -10/Mines | Found Prototype Device 1419 | -10/Mines | Lost 3 parts (2n1u) 1513 | -10/Mines | Found a hidden stash of uninstalled traps 1612 | -10/Mines | Discovered exit to Materials (range 4) 1670 | -10/Mines | Met a Derelict who couldn't figure out how to use a Trap Extractor 1854 | -10/Mines | Deemed a non-threat by the Exiles lab entrance 2243 | -10/Mines | Discovered exit to Materials (range 8) 2462 | -10/Mines | Discovered new exit (range 5) 2471 | -10/Mines | Entered Exiles 2497 | -10/Exiles | Discovered new exit (range 15) 2524 | -10/Exiles | Met 8R-AWN 2551 | -10/Exiles | Met EX-HEX 2642 | -10/Exiles | Met EX-DEC 2686 | -10/Exiles | Learned location of Zion (-6) 2720 | -10/Exiles | Met EX-BIN 2862 | -10/Exiles | Discovered new exit (range 10) 2875 | -10/Exiles | Entered Mines 2881 | -9/Mines | Met a Derelict bent on vengeance 3205 | -9/Mines | Learned Materials trap positions 3292 | -9/Mines | Discovered new exit (range 12) 3432 | -9/Mines | Core integrity fell below 20% 3488 | -9/Mines | Discovered new exit (range 6) 3748 | -9/Mines | Found a Scrap Suit stashed away for nefarious purposes 3756 | -9/Mines | Found Scrap Suit 4234 | -9/Mines | Entered Materials 4234 | -8/Materials | Accompanied by 1 ally 4234 | -8/Materials | Evolved 4 slots: Propulsion x1, Utility x2, Weapon x1 4235 | -8/Materials | Loaded intel: 22 trap records 4534 | -8/Materials | Discovered new exit (range 5) 4545 | -8/Materials | Build established: Gunner 5151 | -8/Materials | Learned 4 Factory zone layouts 5225 | -8/Materials | Identified exit to Factory 5287 | -8/Materials | Learned Factory stockpile data 5419 | -8/Materials | Learned Factory non-interactive machine intel 5464 | -8/Materials | Learned 2 Storage zone layouts 5495 | -8/Materials | Repaired Hrd. Medium Armor Plating 5801 | -8/Materials | Build established: Tank 5909 | -8/Materials | Identified Exp. Sensor Array 6221 | -8/Materials | Garrison activated, responded to threat 6369 | -8/Materials | Identified exit to Garrison 7058 | -8/Materials | Build established: Gunner 7421 | -8/Materials | Build established: Tank 7642 | -8/Materials | Entered Garrison 7796 | -8/Garrison | Triggered checkpoint 7810 | -8/Garrison | Triggered checkpoint 7836 | -8/Garrison | Garrison Relay disabled 7864 | -8/Garrison | Learned Materials security intel 7992 | -8/Garrison | Triggered checkpoint 8038 | -8/Garrison | Triggered checkpoint 8055 | -8/Garrison | Garrison Relay disabled 8143 | -8/Garrison | Build established: Scavenger-Tank 8422 | -8/Garrison | Discovered new exit (range 11) 8490 | -8/Garrison | Triggered checkpoint 8520 | -8/Garrison | Garrison Relay disabled 8636 | -8/Garrison | Triggered checkpoint 8760 | -8/Garrison | Discovered new exit (range 10) 8798 | -8/Garrison | Triggered checkpoint 8852 | -8/Garrison | Garrison Relay disabled 8935 | -8/Garrison | Garrison Relay disabled 8936 | -8/Garrison | Triggered checkpoint 8944 | -8/Garrison | Core integrity fell below 50% 9100 | -8/Garrison | Triggered checkpoint 9141 | -8/Garrison | Garrison Relay disabled 9339 | -8/Garrison | Discovered new exit (range 11) 9372 | -8/Garrison | Triggered checkpoint 9402 | -8/Garrison | Garrison Relay disabled 9469 | -8/Garrison | Entered Materials 9859 | -8/Materials | Repaired Arm. Treads 9930 | -8/Materials | Repaired Enh. Autogun 9991 | -8/Materials | Repaired Adv. Beam Rifle 10269 | -8/Materials | First assault squad dispatched 10343 | -8/Materials | Core integrity fell below 20% 10372 | -8/Materials | Destroyed 8 combat bots 10841 | -8/Materials | Build established: Tank 10860 | -8/Materials | Discovered exit to Factory (range 16) 10963 | -8/Materials | Learned Factory emergency access door positions 11004 | -8/Materials | Learned Factory security intel 11033 | -8/Materials | Learned 2 Lower Caves zone layouts 11051 | -8/Materials | Learned location of 2 exits from Lower Caves 11058 | -8/Materials | Learned 2 Lower Caves zone layouts 11059 | -8/Materials | Learned Factory fabricator intel 11085 | -8/Materials | Learned Factory security intel 11203 | -8/Materials | Entered Factory 11203 | -7/Factory | Evolved 2 slots: Propulsion x1, Utility x1 11204 | -7/Factory | Identified exit to Lower Caves 11209 | -7/Factory | Loaded intel: 218 non-interactive machine locations 11210 | -7/Factory | Loaded intel: 6 fabricator locations 11561 | -7/Factory | Build established: Scavenger-Tank 12207 | -7/Factory | Fabricated Hvy. Assault Cannon (x1) 12372 | -7/Factory | Discovered new exit (range 13) 12403 | -7/Factory | First assault squad dispatched 12685 | -7/Factory | Discovered new exit (range 14) 12706 | -7/Factory | Identified exit to Storage 12707 | -7/Factory | Entered Storage 12708 | -7/Storage | Identified exit to Recycling 12709 | -7/Storage | Identified exit to Factory 13050 | -7/Storage | Core integrity fell below 50% 13073 | -7/Storage | Destroyed 7 combat bots 13076 | -7/Storage | Lost 10 parts (4n2u4w) 13235 | -7/Storage | Met a pair of Derelict thieves 13395 | -7/Storage | Destroyed 8 combat bots 13507 | -7/Storage | First assault squad dispatched 13965 | -7/Storage | Assisted by bots powering up and referring to "LRC-V3" 14005 | -7/Storage | Used back door to open Recycling access 14269 | -7/Storage | Build established: Commander-Tank 14400 | -7/Storage | Lost 7 allies 14659 | -7/Storage | Build established: Scavenger-Tank 15067 | -7/Storage | Entered Recycling 15318 | -7/Recycling | Found Powered Armor 15410 | -7/Recycling | Core integrity fell below 20% 15685 | -7/Recycling | Discovered new exit (range 16) 15835 | -7/Recycling | Learned location of 2 exits from Factory 15909 | -7/Recycling | Learned location of 2 exits from Factory 15934 | -7/Recycling | Learned location of 1 exit from Extension 15950 | -7/Recycling | Learned Factory stockpile data 15985 | -7/Recycling | Scanned before Scraplab entrance 16011 | -7/Recycling | Learned Hub_04(d) terminal intel 16011 | -7/Recycling | Entered Scraplab 16023 | -7/Recycling | Discovered new exit (range 3) 16055 | -7/Recycling | Learned Factory garrison access intel 16059 | -7/Recycling | Entered Scraptown 16059 | -7/Scraptown | Accompanied by 6 allies 16060 | -7/Scraptown | Identified exit to Factory 16139 | -7/Scraptown | Visited Junk Repository 16200 | -7/Scraptown | Build established: Commander-Mutant 16249 | -7/Scraptown | Visited The Evicted 16262 | -7/Scraptown | Visited UFD Registry 16262 | -7/Scraptown | Registered with UFD as "Alphabrain" 16308 | -7/Scraptown | Visited Abandonware Association 16323 | -7/Scraptown | Learned abandonware demo "POISON.EXE" 16326 | -7/Scraptown | Learned abandonware demo "OVRCLOCK.EXE" 16375 | -7/Scraptown | Visited Science Guys 16498 | -7/Scraptown | Visited Botcube Research 16520 | -7/Scraptown | Visited Analyses Database 16550 | -7/Scraptown | Visited Infowarlord's Domain 16579 | -7/Scraptown | Visited Scrap Suit Storage 16602 | -7/Scraptown | Visited DA-N13 Charitable Foundation 16615 | -7/Scraptown | Found DCF Scrap (28 items) 16647 | -7/Scraptown | Visited Modified Component R&D 16753 | -7/Scraptown | Warned about trapping Scraptown 16813 | -7/Scraptown | Found Voltaic Drivehammer 16835 | -7/Scraptown | Lost 5 allies 16965 | -7/Scraptown | System corruption cleaned by C-Scrubber 17580 | -7/Scraptown | Visited Observation Area 17615 | -7/Scraptown | Visited Assassins FH 17633 | -7/Scraptown | Visited CR-KLE's Repair Center 17762 | -7/Scraptown | Found Lrg. Botcube 17805 | -7/Scraptown | Found Exp. Terrain Scanner 18324 | -7/Scraptown | Found Scrap Suit 18783 | -7/Scraptown | Lrg. Botcube activated 18815 | -7/Scraptown | Lrg. Botcube completed mutation into wheeled form, armed with 4 guns. 18924 | -7/Scraptown | Visited Cartography Club 18936 | -7/Scraptown | Found Surveybot 17 Chip 18955 | -7/Scraptown | Learned location of Quarantine (-3) 18955 | -7/Scraptown | Learned 16 Materials zone layouts 18955 | -7/Scraptown | Learned 12 Factory zone layouts 18955 | -7/Scraptown | Learned 16 Factory zone layouts 18955 | -7/Scraptown | Learned 12 Research zone layouts 18955 | -7/Scraptown | Learned 4 Mines zone layouts 18955 | -7/Scraptown | Learned 4 Recycling zone layouts 18955 | -7/Scraptown | Learned 24 Upper Caves zone layouts 18955 | -7/Scraptown | Learned 16 Proximity Caves zone layouts 18955 | -7/Scraptown | Learned 24 Proximity Caves zone layouts 18955 | -7/Scraptown | Learned Storage emergency access door positions 18955 | -7/Scraptown | Learned location of 1 exit from Lower Caves 18955 | -7/Scraptown | Learned location of 1 exit from Proximity Caves 18959 | -7/Scraptown | Found Deep Structural Scanner 19372 | -7/Scraptown | Build established: Commander-Gunner 19451 | -7/Scraptown | Visited Supply Room 19532 | -7/Scraptown | CR-KLE repaired 7 parts 19783 | -7/Scraptown | Met Optimus 19783 | -7/Scraptown | Accepted into 0bPrime 19878 | -7/Scraptown | Entered Factory 19878 | -5/Factory | Accompanied by 7 allies 19878 | -5/Factory | Evolved 4 slots: Power x1, Utility x2, Weapon x1 19879 | -5/Factory | Identified exit to Factory 19879 | -5/Factory | Identified exit to Upper Caves 19879 | -5/Factory | Identified exit to Extension 19884 | -5/Factory | Loaded intel: 3 garrison access locations 20013 | -5/Factory | Loaded intel: 8 recycling unit locations 20078 | -5/Factory | Lost 3 allies 20188 | -5/Factory | Fabricated Hvy. Assault Cannon? 20389 | -5/Factory | Build established: Gunner 20478 | -5/Factory | First assault squad dispatched 20641 | -5/Factory | System corruption reached 10% 20679 | -5/Factory | Lost 3 parts (1p1u1w) 20712 | -5/Factory | Found Lrg. Botcube 21345 | -5/Factory | Entered Extension 21346 | -5/Extension | Identified exit to Cetus 21408 | -5/Extension | Rescued a captive Derelict 21409 | -5/Extension | Rescued a captive Derelict 21495 | -5/Extension | Disrupted transfer network 21727 | -5/Extension | Lost 4 parts (1p2n1u) 21852 | -5/Extension | Rescued A7 21910 | -5/Extension | Rescued a captive Derelict 21952 | -5/Extension | Rescued a captive Derelict 22096 | -5/Extension | Spotted B-75 Beast 22133 | -5/Extension | Destroyed B-75 Beast 22149 | -5/Extension | Spotted B-75 Beast 22171 | -5/Extension | Destroyed B-75 Beast 22189 | -5/Extension | Extracted ID and sensor layout for unrecognized location from A7's data core 22335 | -5/Extension | Found Prototype Protection 22335 | -5/Extension | Identified Med. Regenerative Plating 22368 | -5/Extension | Build established: Scavenger-Gunner 22486 | -5/Extension | Discovered exit to Factory (range 12) 22771 | -5/Extension | Rescued a captive Derelict 22940 | -5/Extension | Rescued a captive Derelict 22941 | -5/Extension | Rescued a captive Derelict 23063 | -5/Extension | Rescued a captive Derelict 23145 | -5/Extension | First assault squad dispatched 23256 | -5/Extension | Lost 6 allies 23317 | -5/Extension | Discovered exit to Factory (range 10) 23376 | -5/Extension | Entered Cetus 23376 | -5/Cetus | Accompanied by 3 allies 23377 | -5/Cetus | Identified exit to Archives 23410 | -5/Cetus | Spotted Cetus Guard 23410 | -5/Cetus | Spotted Cetus Guard 23412 | -5/Cetus | Spotted Cetus Guard 23414 | -5/Cetus | Spotted Cetus Guard 23420 | -5/Cetus | Core integrity fell below 50% 23433 | -5/Cetus | Destroyed Cetus Guard 23448 | -5/Cetus | Destroyed Cetus Guard 23451 | -5/Cetus | Destroyed Cetus Guard 23459 | -5/Cetus | Destroyed Cetus Guard 23473 | -5/Cetus | Lost 3 allies 23483 | -5/Cetus | Lost 6 parts (1p1u4w) 23614 | -5/Cetus | Entered Archives 23627 | -5/Archives | Build established: Scavenger-Tank 23842 | -5/Archives | Discovered exit to Factory (range 15) 23943 | -5/Archives | Discovered new exit (range 15) 24328 | -5/Archives | Lrg. Botcube activated 24362 | -5/Archives | Lrg. Botcube completed mutation into treaded form, armed with 4 guns. 24548 | -5/Archives | Identified exit to Hub_04(d) 24558 | -5/Archives | Entered Hub_04(d) 24558 | -5/Hub_04(d) | Accompanied by 1 ally 24559 | -5/Hub_04(d) | Loaded intel: 15 terminal locations 25089 | -5/Hub_04(d) | Discovered exit to Factory (range 3) 25145 | -5/Hub_04(d) | Found Lrg. Botcube 25334 | -5/Hub_04(d) | Network Hub disabled 25384 | -5/Hub_04(d) | Network Hub disabled 25394 | -5/Hub_04(d) | Network Hub disabled 25424 | -5/Hub_04(d) | Spotted Lightning 25427 | -5/Hub_04(d) | Spotted Lightning 25429 | -5/Hub_04(d) | Spotted Lightning 25440 | -5/Hub_04(d) | Garrison activated, responded to threat 25460 | -5/Hub_04(d) | Core integrity fell below 20% 25462 | -5/Hub_04(d) | System corruption reached 30% 25465 | -5/Hub_04(d) | Destroyed by G-50 Soldier with Heavy Laser Last Messages --------------- 25456_ Dropped Adv. Plasma Cannon. 25457_ Dropped Adv. KE Penetrator. 25457_ Dropped Enh. Autogun. 25458_ Dropped Centrium Medium Armor Plating. 25458_ EMDS Slug penetrates Control Node. 25458_ ALERT: Hostiles spotted, dispatching reinforcements to Terminal H007. 25458_ Acquired 6 matter. 25459_ The unstable cave ceiling collapses. 25459_ Lrn. Tractor Beam crushed. 25459_ Penetrated by EMDS Slug. 25460_ Adv. System Shield destroyed. 25461_ Penetrated by EMDS Slug. 25461_ Control Node disabled. 25461_ Dropped Centrium Medium Armor Plating. 25462_ Adv. Signal Interpreter destroyed. 25464_ The unstable cave ceiling collapses. 25464_ Surveybot 17 Chip crushed. 25464_ The unstable cave ceiling collapses. 25464_ Imp. Weapon Cycler crushed. Map ----- +----------------------------------------------------+ | ?????????????????????????????????????????????????? | | ?????????????????????????????????????????????????? | | ????????????????????????????????""T""????????????? | | ????????????????????????????????"""""????????????? | | ?????????????????????????????????????????????????? | | ?????????????????????????????????????????????????? | | ?????????????????????????????????????????????????? | | ?????????????????????????????????????????????????? | | ???????????????????????????????? ???????????????? | | ??????????????????????????????? ??????? ???????? | | ???????????????? ?????????????? #?????? ???????? | | ???????????????? ????????????? ##???? ???????? | | ???????????????? ?????? ??????? ???? ??????? | | ???T"??????????? ???""? ??????? ????? ???????? | | ???""??????????? ???""" ???????? ????? ??????? | | ???????????????? ???? ???????? ######+#####??? | | ???????????????? ???? ????#####+;# ? | | ???????????????# #??? ????# # """ """ """?? | | ???????????????+ #??? ????# "" g# ??? | | ???????????????# #???#/#????# Hg# " """ ""??? | | ???????????????# #???# #????# "" ????? | | ???????????????# #??## #??### T""" ????? | | ???????????????# #?### ##?# % [ [![ ###?????? | | ???????????????# #?# k ### #*%!*#!! #= ####### | | ???????????????# #?# = g xg!!!= ! | | ???????????????# #?#=%R @g xh !hhi] "T | | ???????????????# #?#*g=!## ##!# [ ##### | | ########???????#+####/######## ###???# | | #???????#!*[![*!== ##!!% /#???# | | #???????# "[=!!!=!] ##!! # #####++ | | #???????# """ ! !![ ##!! # """ """ # | | #???????# G=[!! """ ## # # | | #???????# """=["""" ## " # # " | | #???????# "==!!"""" ## " # [| =# "" | | #???????#![=*[[=[! ## " # * [ [ # """ | | #???????# """!="""" ## # " "" | | ########???????# """"*"""" ################ """ | | #????##### """"[""?? #??????????????# "" | | """ "#????# + """" ""??? #??????????????# " | | "#????# ### ????????????????# | | """ "#????# #?############????????????????####### | | T#????# #??????? ???????????????????????????? | | "#????# #???????#???????????????????????????? | | !! "#????# #???????????????????????????????????? | | !! "###### #???????????????????????????????????? | | ! + #???????????????????????????????????? | | ##############???????????????????????????????????? | | ?????????????????????????????????????????????????? | | ?????????????????????????????????????????????????? | | ?????????????????????????????????????????????????? | +----------------------------------------------------+ Best States ------------- Heat Dissipation 102 Coolant Potential 80 Energy Generation 45 Energy Capacity 600 Matter Stores 300 Matter Capacity 600 Sight Range 16 Robot Scan Range 20 Terrain Scan Density 10 Jamming Range 12 Additional Mass Support 9 Base Temperature (-) 100 Armor Coverage 825 Resistance: KI 30 Resistance: EM 15 Weapon Cycling 30 Evasion (%) 50 Targeting Accuracy 13 Core Analysis 6 Recoil Reduction 4 Matter Filtering 30 Energy Filtering 30 Offensive Hacking 48 Defensive Hacking 14 Authchip Count 1 Trap Extractor Capacity 6 Item Schematics ----------------- Huge Storage Unit | -10/Materials | Hacked Hcp. Storage Unit | -10/Materials | Hacked Arm. Treads | -8/Materials | Hacked Cmb. Airjet | -8/Materials | Scanalyzed Enh. Autogun | -8/Materials | Scanalyzed Hvy. Assault Cannon | -8/Materials | Scanalyzed Hvy. Machine Gun | -7/Storage | Hacked Robot Schematics ------------------ M-13 Machinist | -10/Materials | Hacked Fabricated ------------ Hvy. Assault Cannon | x1 | -7/Factory | Authchip Hvy. Assault Cannon | x1 | -5/Factory Repaired ---------- Lgt. Armor Plating | 20% | -10/Materials Hrd. Medium Armor Plating | 70% | -8/Materials Arm. Treads | 1% | -8/Materials Enh. Autogun | 38% | -8/Materials Adv. Beam Rifle | 5% | -8/Materials Alien Tech Used ----------------- None Achievements -------------- None Challenges ------------ None Game ------ Seed TerrorProcessingLance Manual? 0 Play Time 04:04:56 Cumulative 682.1 hours Start 2025.05.09 @ 14:58:36 End 2025.05.09 @ 19:14:29 Sessions 1 Manual Loads 0 Difficulty Rogue Special Mode None Game No. 269 Rogue 264 Adventurer 4 Explorer 1 Win Type - Total 10 Types 6/1/1/1/0/1/0/0/0/0 Lore% 93 Gallery% 87 Achievement% 87 Wizard Run 0 Options --------- Layout 0 ASCII 0 Keyboard 0 Movement Numpad Keybinds 0 Fullscreen 2 Font 18/CogNarrow Map View 76x50 Zoom Use 0% Tactical HUD 1 Map Filters NONE Filters NONE Steam 1 RUN: 56851a60-cd34-4333-b4a8-f84065f0a338